bitfinex/quotes_ETHUSD_20260312
["timestamp","ask_amount","ask_price","bid_price","bid_amount"]
[1773330428992,1.839685,2070.2,2068.7,0.5902923]
[1773330429289,1.839685,2070.2,2068.8,3.3127223]
[1773330429580,0.63207,2070.1,2068.8,3.3127223]
[1773330429925,0.63207,2070.1,2068.9,2.92259174]
[1773330430090,1.20760151,2070.3,2069.0,0.5902923]
[1773330430380,1.20754528,2070.4,2069.0,0.5902923]
[1773330430586,1.83954755,2070.5,2069.2,2.92259174]
[1773330430786,1.83954755,2070.5,2068.8,1.7987223]
[1773330430787,0.63207,2070.3,2068.8,1.7987223]
[1773330431162,0.63207,2070.0,2068.8,1.20843]
[1773330431362,0.63207,2070.0,2068.9,0.04833486]
[1773330431560,0.63207,2070.0,2068.8,1.20843]
[1773330431989,2.81674856,2070.7,2069.0,0.5902923]
[1773330431990,0.63207,2070.5,2069.0,0.5902923]
[1773330432598,0.63207,2070.5,2069.2,2.92259174]
[1773330432772,0.63207,2070.5,2069.3,0.5902923]
[1773330432973,0.63207,2070.5,2069.4,1.516]
[1773330433288,2.66726357,2070.7,2069.5,3.5403207]
[1773330433477,5.46099485,2070.9,2069.6,0.5902923]
[1773330433478,1.83930283,2070.9,2069.6,0.5902923]
[1773330433678,1.8392773,2070.9,2069.6,0.5902923]
[1773330433866,1.8392773,2070.9,2069.7,1.516]
[1773330434273,1.2072073,2070.9,2069.8,0.5902923]
[1773330434769,1.83907257,2071.3,2069.9,0.5902923]
[1773330435171,0.63207,2071.2,2070.0,2.72472946]
[1773330435379,0.63207,2071.2,2070.0,1.20772946]
[1773330435690,3.53930201,2071.3,2069.6,1.20796289]
[1773330435691,0.63207,2070.9,2069.6,1.20796289]
[1773330436060,0.63207,2070.9,2069.6,1.79825519]
[1773330436261,0.63207,2070.9,2069.7,2.1072923]
[1773330436461,0.63207,2070.9,2069.7,0.5902923]
[1773330436691,0.63207,2070.9,2069.7,1.517]
[1773330436866,0.63207,2070.9,2069.7,4.43959174]
[1773330437192,0.63207,2070.9,2069.8,0.001]
[1773330437368,4.82788586,2071.4,2069.8,0.001]
[1773330437369,0.63207,2071.4,2069.9,0.5902923]
[1773330437880,0.63207,2071.2,2069.9,0.5902923]
[1773330438760,0.63207,2071.2,2069.8,1.20884616]
[1773330438761,5.45995586,2071.5,2070.1,0.5902923]
[1773330439163,5.45995586,2071.5,2070.1,3.18154257]
[1773330439565,0.002,2071.7,2070.3,0.5902923]
[1773330439764,0.002,2071.7,2070.6,2.33229944]
[1773330440096,0.002,2071.7,2070.7,0.5902923]
[1773330440307,0.002,2071.9,2071.0,0.5902923]
[1773330440503,0.63207,2072.4,2071.3,0.62013256]
[1773330440797,0.32034227,2072.5,2071.5,2.952432]
[1773330440961,0.32034227,2072.5,2071.6,1.517]
[1773330441559,0.32034227,2072.5,2071.7,1.20673842]
[1773330441982,0.32034227,2072.5,2071.8,2.33229944]
[1773330442163,0.32034227,2072.5,2071.7,1.20673842]
[1773330442164,1.52661562,2072.5,2071.7,1.20673842]
[1773330442364,0.32034227,2072.5,2071.6,5.55069212]
[1773330442665,0.32034227,2072.5,2071.7,1.20673842]
[1773330442666,1.52661664,2072.5,2071.7,1.20673842]
[1773330442992,0.32034227,2072.5,2071.7,1.20673842]
[1773330443293,1.52662329,2072.5,2071.7,1.20673842]
[1773330443598,1.52662329,2072.5,2071.6,2.58837491]
[1773330444392,0.32034227,2072.5,2071.6,3.20850747]
[1773330444968,0.32034227,2072.5,2071.9,2.58837491]
[1773330445175,1.20601295,2073.0,2071.8,3.20850747]
[1773330445378,1.20601295,2073.0,2071.9,1.516]
[1773330445579,0.60152067,2072.8,2071.4,1.20685493]
[1773330445879,0.60152067,2072.7,2071.4,2.3303648]
[1773330446073,0.60152067,2072.7,2071.3,0.62013256]
[1773330446596,0.60152067,2072.7,2071.6,2.3303648]
[1773330446803,1.80744516,2073.1,2071.9,2.3303648]
[1773330447105,1.80744516,2073.1,2071.7,2.11813256]
[1773330447106,0.60152067,2073.0,2071.7,2.11813256]
[1773330447401,0.60152067,2073.0,2071.7,1.498]
[1773330447769,0.60152067,2072.8,2071.7,1.20672515]
[1773330448002,0.60152067,2072.8,2071.4,4.89317799]
[1773330448003,0.60152067,2072.8,2071.5,1.20685493]
[1773330449922,1.80767689,2072.7,2071.3,5.44801612]
[1773330450110,0.60152067,2072.6,2071.3,5.44801612]
[1773330450821,1.20614021,2072.8,2071.7,2.95049736]
[1773330451019,1.20614021,2072.8,2071.8,0.62013256]
[1773330451320,1.20614021,2072.8,2071.4,2.12613256]
[1773330451321,0.60152067,2072.7,2071.4,2.12613256]
[1773330451893,0.60152067,2072.7,2071.5,1.82698749]
[1773330451894,1.20821441,2072.6,2071.5,1.82698749]
[1773330452780,0.002,2072.6,2071.7,2.3303648]
[1773330453794,0.002,2072.6,2071.5,1.82698749]
[1773330453992,0.60352067,2072.6,2071.5,1.82698749]
[1773330454406,0.60352067,2072.6,2070.9,1.20720459]
[1773330454407,0.60152067,2072.2,2070.9,1.20720459]
[1773330455916,1.20650547,2072.1,2070.9,1.20720459]
[1773330456098,1.80802614,2072.1,2070.9,1.20720459]
[1773330456296,0.60152067,2072.0,2070.9,1.20720459]
[1773330456902,0.60152067,2072.0,2070.9,1.82733715]
[1773330458290,0.60152067,2071.8,2070.9,1.20720459]
[1773330458926,0.60152067,2071.8,2070.5,5.44942917]
[1773330458927,0.60152067,2071.8,2070.5,0.62013256]
[1773330459129,0.60152067,2071.8,2070.2,1.20761279]
[1773330459130,0.60152067,2071.6,2070.2,1.20761279]
[1773330459294,2.56358381,2071.7,2070.2,1.20761279]
[1773330459295,0.60152067,2071.4,2070.2,1.20761279]
[1773330460098,0.60152067,2071.2,2070.2,1.20761279]
[1773330460413,0.60152067,2071.0,2069.8,4.83192779]
[1773330461310,4.82794273,2071.3,2070.0,0.62013256]
[1773330461610,1.80846457,2071.4,2070.2,2.3303648]
[1773330462092,4.82765279,2071.5,2070.3,0.62013256]
[1773330462093,1.20689569,2071.5,2070.3,0.62013256]
[1773330462289,4.82723967,2071.6,2070.4,1.20749613]
[1773330462516,0.60152067,2071.5,2070.4,1.20749613]
[1773330464521,0.60530384,2071.3,2070.4,1.20749613]
[1773330465037,0.60530384,2070.5,2069.8,0.001]
[1773330465326,0.60530384,2070.3,2069.8,0.001]
[1773330466027,0.60530384,2070.3,2069.6,0.001]
[1773330466028,0.60530384,2069.9,2069.6,0.001]
[1773330466442,5.071,2070.4,2069.6,0.001]
[1773330466443,0.60530384,2070.4,2069.6,0.001]
[1773330466604,1.20755446,2070.3,2069.6,0.001]
[1773330468025,1.8128583,2070.3,2070.1,0.001]
[1773330468394,4.82956934,2070.6,2070.1,0.001]
[1773330468597,5.43487318,2070.6,2070.1,0.001]
[1773330468819,0.60530384,2070.5,2070.1,0.001]
[1773330469225,0.60530384,2070.5,2069.6,0.001]
[1773330469226,0.60530384,2070.4,2069.6,0.001]
[1773330469428,2.3303648,2070.2,2069.6,0.001]
[1773330469723,2.3303648,2070.2,2069.5,0.001]
[1773330469724,0.60530384,2069.8,2069.5,0.001]
[1773330469929,0.60530384,2069.8,2069.3,0.001]
[1773330470128,0.60530384,2069.8,2068.5,2.99968444]
[1773330470129,0.60530384,2069.8,2069.0,1.16073862]
[1773330470639,2.3303648,2070.4,2068.8,4.83325277]
[1773330470640,0.67592679,2070.2,2068.8,0.67222275]
[1773330470925,0.67592679,2070.2,2068.8,3.00258755]
[1773330471130,0.67592679,2070.2,2069.0,0.67222275]
[1773330471324,0.67592679,2070.3,2069.1,0.67222275]
[1773330471707,0.67592679,2070.0,2068.6,4.83418462]
[1773330472331,0.67592679,2069.8,2068.6,4.83418462]
[1773330472519,4.83031138,2070.3,2068.7,0.67222275]
[1773330472831,4.83031138,2070.3,2068.6,7.16454942]
[1773330472832,1.8833646,2070.6,2069.2,2.3303648]
[1773330473016,4.82978171,2070.5,2069.2,3.00258755]
[1773330473217,5.5057085,2070.5,2069.2,0.67222275]
[1773330474726,0.67592679,2070.4,2069.3,1.20813801]
[1773330475103,1.20743781,2070.6,2069.3,1.88036076]
[1773330475304,1.20736171,2070.7,2069.5,3.00258755]
[1773330475540,1.20736171,2070.7,2069.5,0.67222275]
[1773330475702,0.67592679,2070.6,2069.3,3.54224125]
[1773330476103,0.67592679,2070.6,2069.4,0.67222275]
[1773330476342,1.20729684,2070.8,2069.4,0.67222275]
[1773330476642,1.20729684,2070.8,2069.5,1.88024401]
[1773330476828,0.67592679,2070.7,2069.5,1.20802126]
[1773330479341,1.2073795,2070.6,2069.4,4.83208504]
[1773330479545,1.88330629,2070.6,2069.4,4.83208504]
[1773330480242,0.67592679,2070.5,2069.4,4.83208504]
[1773330481135,4.82951801,2070.8,2069.4,4.83208504]
[1773330481136,2.09892679,2070.9,2069.5,0.67222275]
[1773330481449,2.09892679,2070.9,2069.6,1.20896289]
[1773330481450,0.67592679,2070.7,2069.6,1.20896289]
[1773330481747,1.20726289,2070.8,2069.6,1.88118564]
[1773330481945,6.25205157,2070.9,2069.7,0.67222275]
[1773330481946,0.002,2070.5,2069.7,0.67222275]
[1773330482144,7.16173111,2071.5,2069.6,1.20896289]
[1773330482145,0.67592679,2071.5,2070.4,2.33410324]
[1773330482465,7.16048745,2072.1,2070.4,3.00632599]
[1773330482466,3.77036255,2071.7,2070.4,3.00632599]
[1773330482642,3.77036255,2071.7,2070.5,0.67222275]
[1773330482643,1.20677874,2071.7,2070.5,0.67222275]
[1773330482937,1.88270553,2071.7,2070.5,0.67222275]
[1773330483310,0.002,2071.0,2070.1,1.87989387]
[1773330483508,0.002,2071.0,2070.3,0.67222275]
[1773330483745,0.002,2071.0,2070.1,1.20767112]
[1773330484517,0.002,2071.0,2070.4,0.67222275]
[1773330485148,0.002,2071.0,2070.1,1.20767112]
[1773330486258,0.002,2071.0,2070.1,4.21399711]
[1773330486563,0.002,2071.0,2070.1,1.20767112]
[1773330487459,0.002,2071.0,2070.3,1.20755446]
[1773330487760,1.422,2071.9,2070.3,1.20755446]
[1773330487761,1.88231582,2072.3,2070.9,0.67222275]
[1773330488059,1.10740412,2072.2,2071.0,1.517]
[1773330488244,0.43147733,2072.1,2071.0,1.517]
[1773330488452,0.67592679,2072.2,2071.0,1.517]
[1773330488629,0.43151131,2072.1,2071.0,1.517]
[1773330488943,1.20833178,2072.4,2071.2,0.67222275]
[1773330489143,0.002,2072.4,2071.2,0.67222275]
[1773330489327,0.002,2072.4,2071.4,0.67222275]
[1773330489663,0.002,2072.6,2071.8,3.00632599]
[1773330489835,0.002,2072.6,2071.8,2.19022275]
[1773330490158,0.002,2072.6,2071.9,0.67222275]
[1773330490726,1.20822399,2072.6,2071.5,3.00632599]
[1773330490972,0.002,2072.6,2071.8,3.00632599]
[1773330491263,0.002,2072.6,2071.9,0.67222275]
[1773330491465,0.002,2072.6,2072.0,1.2065637]
[1773330491766,0.002,2072.8,2072.0,1.2065637]
[1773330491937,0.002,2072.8,2072.1,3.00632599]
[1773330492260,0.002,2072.8,2072.2,0.67222275]
[1773330492454,0.002,2072.8,2072.3,1.519]
[1773330492858,0.002,2073.1,2072.5,0.67222275]
[1773330493344,0.002,2073.1,2072.3,1.519]
[1773330493345,0.002,2073.1,2072.3,1.52]
[1773330493552,0.002,2073.1,2072.4,1.20633082]
[1773330494135,0.002,2073.1,2072.4,3.54043406]
[1773330494537,0.002,2073.1,2072.3,2.7263441]
[1773330495266,0.002,2073.1,2072.0,7.15965938]
[1773330495267,0.67792679,2073.1,2071.7,1.87890293]
[1773330495472,0.67592679,2072.9,2072.0,1.2065637]
[1773330495868,0.67592679,2072.9,2071.8,4.82665876]
[1773330496166,0.67592679,2072.9,2071.4,0.67222275]
[1773330496167,0.67592679,2072.8,2071.4,0.67222275]
[1773330496462,0.67592679,2072.8,2071.5,4.82734185]
[1773330497070,0.67592679,2072.8,2071.6,0.67222275]
[1773330497263,0.002,2072.9,2071.6,0.67222275]
[1773330497589,0.002,2072.9,2071.9,0.67222275]
[1773330497795,0.002,2072.9,2072.0,2.7295637]
[1773330499242,0.002,2072.9,2072.0,3.40178645]
[1773330499783,0.002,2072.9,2072.2,0.67222275]
[1773330499996,0.002,2073.1,2072.2,0.67222275]
[1773330501171,0.002,2073.1,2072.5,0.5987195]
[1773330501761,0.002,2073.1,2072.7,1.20615622]
[1773330502093,0.60221339,2074.0,2073.0,2.33410324]
[1773330502296,0.002,2074.3,2073.0,2.33410324]
[1773330502297,0.002,2074.3,2073.3,2.93282274]
[1773330502459,0.002,2074.3,2073.6,2.33410324]
[1773330503066,0.002,2074.3,2073.7,1.527]
[1773330503391,0.002,2074.3,2073.6,1.528]
[1773330503392,1.20725173,2074.3,2073.6,1.528]
[1773330503689,1.20725173,2074.3,2073.3,0.6642555]
[1773330503690,1.20534207,2074.1,2073.3,1.20580716]
[1773330504358,0.002,2074.3,2073.3,1.80452666]
[1773330504563,1.20723054,2074.3,2073.3,1.80452666]
[1773330504795,1.20723054,2074.3,2073.3,1.20580716]
[1773330505032,1.80944393,2074.3,2073.3,2.59480716]
[1773330505295,1.80944393,2074.3,2073.2,1.20582624]
[1773330505296,0.60221339,2074.2,2073.2,1.20582624]
[1773330505518,0.60221339,2074.1,2072.5,5.42357716]
[1773330505668,0.60221339,2073.8,2072.6,1.20621441]
[1773330505975,0.60221339,2073.7,2072.7,2.33410324]
[1773330506297,0.60221339,2073.7,2072.6,1.20621441]
[1773330507574,1.20552864,2073.8,2072.7,2.33410324]
[1773330507777,1.20552864,2073.8,2072.6,1.20621441]
[1773330508206,1.20552864,2073.8,2072.6,1.80493391]
[1773330508507,1.80774203,2073.8,2072.7,1.391]
[1773330509085,3.62710324,2074.5,2073.0,2.33410324]
[1773330509086,5.42337742,2074.2,2073.0,2.33410324]
[1773330509324,1.20528396,2074.2,2073.0,2.93282274]
[1773330509486,1.20724608,2074.3,2073.1,0.5987195]
[1773330510115,0.60421339,2074.3,2073.2,1.20586532]
[1773330510691,0.002,2074.1,2073.3,1.392]
[1773330511016,0.002,2074.1,2073.4,0.5987195]
[1773330511231,0.002,2074.5,2073.6,2.93282274]
[1773330511387,0.002,2074.8,2073.9,2.33410324]
[1773330511587,0.002,2074.8,2074.0,1.392]
[1773330511785,0.002,2074.6,2074.0,1.392]
[1773330511990,0.002,2074.6,2074.0,1.9907195]
[1773330512293,0.002,2074.6,2074.1,1.20534207]
[1773330512618,0.002,2074.6,2074.1,2.59834207]
[1773330513823,0.002,2074.6,2074.2,2.33410324]
[1773330514013,0.002,2074.8,2074.2,2.33410324]
[1773330514326,0.002,2074.8,2074.3,1.20522585]
[1773330514625,0.002,2074.8,2074.3,1.395]
[1773330514787,0.002,2074.8,2074.1,2.60034207]
[1773330515221,0.002,2074.8,2074.1,1.20534207]
[1773330515521,0.60421339,2074.8,2073.9,1.395]
[1773330515694,0.60421339,2074.8,2073.2,4.82299604]
[1773330515889,0.60421339,2074.8,2073.3,2.33410324]
[1773330516286,0.60421339,2074.8,2073.4,1.20574901]
[1773330516287,0.60221339,2074.6,2073.4,1.20574901]
[1773330516492,0.60221339,2074.5,2073.3,2.60177539]
[1773330517120,0.60221339,2074.5,2073.3,2.60178058]
[1773330519526,1.80738114,2074.4,2073.3,2.60178058]
[1773330520228,0.60221339,2074.2,2073.3,1.396]
[1773330520519,0.60221339,2074.2,2072.8,1.20609803]
[1773330520723,0.60221339,2074.2,2072.9,0.5987195]
[1773330521306,0.60221339,2074.2,2072.8,1.20609803]
[1773330521601,0.60221339,2073.9,2072.8,1.20609803]
[1773330521801,2.6239479,2073.8,2072.8,1.20609803]
[1773330522427,1.80755546,2074.1,2072.8,1.80481753]
[1773330522720,1.03314835,2074.0,2072.8,1.80481753]
[1773330523023,0.60221339,2074.0,2072.8,1.20609803]
[1773330523596,1.8076717,2073.9,2072.8,1.20609803]
[1773330523810,1.20545831,2073.9,2072.9,0.59591387]
[1773330524139,1.20537309,2074.1,2073.5,0.001]
[1773330524811,1.20523672,2074.3,2073.5,0.001]
[1773330525219,1.78856678,2074.3,2073.5,0.001]
[1773330525940,0.58333006,2074.1,2073.5,0.001]
[1773330526139,0.58333006,2074.1,2073.3,0.001]
[1773330526441,1.20523672,2074.3,2073.3,0.001]
[1773330526442,0.58333006,2073.8,2073.3,0.001]
[1773330527210,0.4315846,2073.7,2073.3,0.001]
[1773330527410,0.58333006,2073.8,2073.3,0.001]
[1773330527610,0.4318349,2073.7,2073.3,0.001]
[1773330527945,1.20557457,2073.7,2073.3,0.001]
[1773330529416,4.82149511,2074.1,2073.3,0.001]
[1773330529631,0.43223293,2074.0,2073.3,0.001]
[1773330529828,0.002,2074.4,2073.3,0.001]
[1773330530027,5.25323545,2074.3,2073.3,0.001]
[1773330530234,0.43223293,2074.2,2073.3,0.001]
[1773330530428,1.03450153,2074.1,2073.3,0.001]
[1773330530749,0.43223293,2074.0,2073.3,0.001]
[1773330532125,1.63766077,2074.0,2073.3,0.001]
[1773330532454,1.80763456,2074.1,2073.3,0.001]
[1773330532750,1.20721612,2074.4,2073.4,0.605316]
[1773330532928,0.43238856,2074.3,2073.4,0.605316]
[1773330533124,1.20721612,2074.4,2073.4,0.605316]
[1773330533331,0.42111822,2074.3,2073.4,0.605316]
[1773330533552,1.80948472,2074.4,2073.3,0.001]
[1773330533752,2.93637184,2074.2,2073.3,0.001]
[1773330533950,0.42116207,2074.1,2073.3,0.001]
[1773330534151,1.20545831,2073.9,2073.3,0.001]
[1773330536658,4.82139262,2074.1,2073.3,0.001]
[1773330536857,0.42119327,2074.0,2073.3,0.001]
[1773330537025,4.82139262,2074.1,2073.3,0.001]
[1773330537229,0.42119327,2074.0,2073.3,0.001]
[1773330537463,0.42123113,2073.9,2073.3,0.001]
[1773330537631,0.42123113,2073.8,2073.3,0.001]
[1773330537825,4.82139262,2074.1,2073.3,0.001]
[1773330538056,0.42123113,2074.0,2073.3,0.001]
[1773330538254,0.42123113,2073.9,2073.5,0.001]
[1773330538454,4.82139262,2074.1,2073.5,0.001]
[1773330538659,0.002,2073.7,2073.5,0.001]
[1773330544469,0.002,2073.9,2073.5,0.001]
[1773330545546,0.42303155,2073.8,2073.5,0.001]
[1773330545767,0.42303155,2073.7,2073.3,0.001]
[1773330545957,2.58747459,2073.9,2073.3,0.001]
[1773330546160,2.58747459,2073.9,2073.3,1.20680362]
[1773330546340,0.42304581,2073.8,2073.3,1.20680362]
[1773330546653,0.002,2073.9,2073.3,1.20680362]
[1773330546849,0.42312528,2073.8,2073.3,1.20680362]
[1773330547050,0.42312528,2073.7,2073.3,0.001]
[1773330547263,1.20554199,2073.8,2073.3,0.001]
[1773330547459,0.002,2073.9,2073.3,0.001]
[1773330547772,0.4231544,2073.8,2073.3,0.001]
[1773330547977,0.002,2073.9,2073.3,2.58647459]
[1773330548154,0.002,2073.9,2073.4,0.605316]
[1773330549082,0.002,2073.9,2073.5,1.20569086]
[1773330549282,0.002,2073.9,2073.4,1.20570019]
[1773330549588,0.002,2073.9,2073.3,4.82399604]
[1773330549589,0.41209026,2073.8,2073.3,1.20675867]
[1773330549748,0.41209026,2073.7,2073.3,1.20675867]
[1773330550051,0.002,2073.9,2073.3,1.20675867]
[1773330550248,0.41209026,2073.8,2073.3,1.81207467]
[1773330550474,0.002,2073.9,2073.3,1.81207467]
[1773330551874,0.002,2073.9,2073.3,1.20675867]
[1773330552079,0.002,2073.9,2073.3,0.001]
[1773330552080,0.41208998,2073.8,2073.3,0.001]
[1773330552240,0.41210337,2073.7,2073.3,0.001]
[1773330552444,0.002,2073.9,2073.3,0.001]
[1773330552659,0.41211605,2073.8,2073.3,0.001]
[1773330552946,0.41211605,2073.7,2073.3,0.001]
[1773330553143,0.002,2073.9,2073.3,0.001]
[1773330553372,0.41212977,2073.8,2073.3,0.001]
[1773330553577,0.41212977,2073.8,2073.0,1.20697271]
[1773330553578,2.21997294,2073.7,2073.0,1.20697271]
[1773330553747,0.41212977,2073.6,2073.0,1.20697271]
[1773330553947,0.41214272,2073.5,2073.0,1.20697271]
[1773330554144,1.72662332,2073.7,2073.0,1.20697271]
[1773330554474,4.82269847,2074.4,2073.7,0.605316]
[1773330554475,0.002,2074.2,2073.7,0.605316]
[1773330555483,0.002,2074.2,2073.8,1.81083244]
[1773330555843,0.002,2074.4,2073.9,2.58547459]
[1773330556042,0.002,2074.6,2074.0,0.605316]
[1773330556271,0.004,2074.6,2074.0,0.605316]
[1773330556638,0.004,2074.6,2073.8,1.20551644]
[1773330556869,0.004,2074.6,2073.8,1.81083244]
[1773330557476,0.004,2074.6,2073.7,1.20554503]
[1773330557477,1.20516775,2074.4,2073.7,1.20554503]
[1773330558478,1.20516775,2074.4,2073.2,4.82329572]
[1773330558479,0.6042686,2074.3,2073.3,1.20580716]
[1773330559239,0.002,2074.2,2073.6,0.605316]
[1773330559440,0.002,2074.4,2073.6,0.605316]
[1773330559843,0.002,2074.4,2073.7,1.20557457]
[1773330560270,0.002,2074.4,2073.8,0.59044755]
[1773330560452,0.002,2074.6,2074.0,0.59044755]
[1773330560651,0.002,2074.6,2073.9,2.58547459]
[1773330560652,0.002,2074.5,2073.9,1.392]
[1773330561949,0.002,2074.5,2074.0,1.20540019]
[1773330562146,0.002,2074.6,2073.5,4.82271254]
[1773330562147,0.002,2074.6,2073.5,1.20569086]
[1773330562148,0.002,2074.4,2073.5,1.20569086]
[1773330562373,0.002,2074.4,2073.5,1.79613841]
[1773330562678,0.54458133,2074.4,2073.5,1.20569086]
[1773330562979,0.54458133,2074.4,2073.7,0.59044755]
[1773330562980,0.002,2074.4,2073.7,0.59044755]
[1773330564044,0.002,2074.4,2073.7,1.79599769]
[1773330564348,0.002,2074.4,2073.7,1.20555014]
[1773330564748,0.002,2074.4,2073.7,1.79599769]
[1773330566277,0.002,2074.6,2073.9,3.17592214]
[1773330566480,0.002,2074.6,2073.9,0.001]
[1773330566645,0.54458133,2074.6,2073.9,0.001]
[1773330566850,0.002,2074.2,2073.5,4.82266902]
[1773330567248,0.002,2074.2,2073.6,0.001]
[1773330568182,0.54458133,2074.2,2073.6,0.001]
[1773330569081,0.002,2074.2,2073.6,0.001]
[1773330569765,0.002,2074.2,2073.6,0.59144755]
[1773330570288,0.002,2074.2,2073.8,0.59044755]
[1773330571580,0.002,2074.2,2073.7,1.20557457]
[1773330571750,0.002,2074.2,2073.7,1.79602212]
[1773330571956,0.002,2074.4,2073.7,1.79602212]
[1773330571957,0.002,2074.4,2073.8,0.59044755]
[1773330572604,0.002,2074.4,2073.9,1.20545831]
[1773330574486,0.002,2074.4,2073.9,0.59044755]
[1773330575392,0.54458133,2074.4,2073.6,1.393]
[1773330575561,0.39420179,2074.3,2073.6,1.2066169]
[1773330575760,0.54458133,2074.4,2073.7,0.02414923]
[1773330575960,0.002,2074.4,2073.7,0.02414923]
[1773330576369,0.002,2074.4,2073.7,0.61459678]
[1773330576570,0.002,2074.4,2073.8,1.20551644]
[1773330576767,0.002,2074.4,2073.8,1.79596399]
[1773330578055,0.002,2074.4,2073.9,0.59044755]
[1773330578462,0.002,2074.6,2074.1,1.79578962]
[1773330578760,0.002,2074.6,2074.2,0.59044755]
[1773330579157,0.002,2074.6,2074.1,2.59934207]
[1773330579362,0.002,2074.6,2074.1,3.18978962]
[1773330579995,0.002,2074.6,2073.7,0.59044755]
[1773330580169,0.002,2074.6,2073.9,1.394]
[1773330580505,0.002,2074.6,2073.9,1.98444755]
[1773330580678,0.002,2074.6,2074.0,1.20540019]
[1773330580878,0.002,2074.2,2074.0,1.20540019]
[1773330581477,0.54258133,2074.1,2073.6,0.001]
[1773330581790,0.002,2074.2,2073.6,0.001]
[1773330581968,0.002,2074.2,2073.6,1.2066308]
[1773330582567,1.20728396,2074.2,2073.6,0.001]
[1773330582769,1.74986529,2074.2,2073.6,0.001]
[1773330583170,0.39841139,2074.1,2073.6,0.001]
[1773330583381,1.74986529,2074.2,2073.6,0.001]
[1773330583698,0.39841139,2074.1,2073.6,0.001]
[1773330583996,1.74986529,2074.2,2073.6,0.001]
[1773330584185,0.39841139,2074.1,2073.6,0.001]
[1773330584381,1.74986529,2074.2,2073.6,0.001]
[1773330584584,0.39865388,2074.1,2073.6,0.001]
[1773330584780,1.74986529,2074.2,2073.6,0.001]
[1773330584965,0.39865388,2074.1,2073.6,0.001]
[1773330585169,4.33533988,2074.2,2073.6,0.001]
[1773330585498,1.20729938,2074.2,2073.6,0.001]
[1773330585696,0.002,2074.2,2073.6,0.001]
[1773330585905,1.20729365,2074.2,2073.6,0.001]
[1773330586802,0.002,2074.2,2073.6,0.001]
[1773330587668,0.3986841,2074.1,2073.6,0.001]
[1773330587870,0.002,2074.2,2073.6,0.001]
[1773330588092,0.3986841,2074.1,2073.6,0.001]
[1773330588283,0.52517214,2074.1,2073.6,0.001]
[1773330588865,1.20540019,2074.0,2073.6,0.001]
[1773330589068,4.31604692,2074.0,2073.6,0.001]
[1773330589295,1.73057233,2074.0,2073.6,0.001]
[1773330589590,1.20540019,2074.0,2073.6,0.001]
[1773330590667,0.92409023,2073.9,2073.4,0.001]
[1773330590878,1.20551644,2073.8,2073.4,0.001]
[1773330591101,1.20551644,2073.8,2073.0,4.82485519]
[1773330591102,0.52558186,2073.5,2073.0,0.001]
[1773330591268,0.52558186,2073.5,2072.2,0.065536]
[1773330591269,2.58547459,2073.2,2072.3,1.20638055]
[1773330591475,0.52558186,2073.3,2072.1,1.20749992]
[1773330591476,2.58547459,2072.9,2072.1,1.20749992]
[1773330591782,0.52558186,2072.9,2072.1,1.20749992]
[1773330592108,5.071,2073.3,2072.1,1.20749992]
[1773330592109,0.52558186,2073.2,2072.1,1.20749992]
[1773330592285,0.39750198,2073.1,2072.1,1.77591788]
[1773330592614,0.39750198,2073.0,2072.1,1.77591788]
[1773330592812,0.52558186,2073.2,2072.1,1.77591788]
[1773330592978,2.12900733,2073.1,2072.1,1.77591788]
[1773330593298,0.39750198,2073.0,2072.1,1.77591788]
[1773330593500,1.73150535,2073.1,2072.1,1.77591788]
[1773330593703,0.39703786,2073.0,2072.1,1.77591788]
[1773330593883,1.73150535,2073.1,2072.1,1.77591788]
[1773330594079,0.92261972,2073.0,2072.3,0.001]
[1773330594283,0.52558186,2073.0,2072.3,0.001]
[1773330594880,1.73167989,2072.8,2072.3,0.001]
[1773330595705,1.20602178,2073.0,2072.3,0.001]
[1773330595904,1.20580716,2073.3,2072.3,3.15489255]
[1773330596280,1.73138902,2073.3,2072.3,3.15489255]
[1773330596606,0.52558186,2073.1,2072.3,0.001]
[1773330597230,1.73156352,2073.0,2072.3,0.001]
[1773330597581,0.52558186,2072.8,2072.3,0.001]
[1773330599314,0.52558186,2072.8,2072.0,0.001]
[1773330599315,0.52558186,2072.6,2072.0,0.001]
[1773330600322,4.82462488,2072.8,2072.0,0.001]
[1773330600323,1.20612636,2072.8,2072.0,0.001]
[1773330600626,9.89423727,2073.4,2072.2,0.56841796]
[1773330600627,1.20580716,2073.3,2072.2,0.56841796]
[1773330600840,6.1132232,2073.4,2072.5,0.56841796]
[1773330600841,2.49577827,2073.4,2072.5,0.56841796]
[1773330600991,2.49575633,2073.4,2072.5,0.56841796]
[1773330601294,2.49575633,2073.4,2072.2,1.394]
[1773330601295,3.02133819,2073.4,2072.3,4.8254903]
[1773330601493,3.02133819,2073.4,2072.4,0.56841796]
[1773330601494,1.20575633,2073.4,2072.4,0.56841796]
[1773330601896,4.31962949,2073.4,2072.4,0.56841796]
[1773330602104,1.73133819,2073.4,2072.4,1.96241796]
[1773330602302,1.73133819,2073.4,2072.1,4.82594712]
[1773330602303,0.52558186,2073.0,2072.1,4.82594712]
[1773330602508,0.52558186,2073.0,2072.0,1.20755375]
[1773330602705,1.29,2073.3,2072.0,1.20755375]
[1773330602706,1.81558186,2073.3,2072.1,0.56841796]
[1773330602997,1.81558186,2073.3,2072.2,0.56841796]
[1773330603308,1.20586532,2073.2,2072.3,1.20638903]
[1773330603624,1.29,2073.3,2072.4,0.56841796]
[1773330603801,2.49582344,2073.3,2072.4,0.56841796]
[1773330604832,0.52558186,2073.6,2072.4,0.56841796]
[1773330605039,8.62760521,2073.8,2072.4,0.56841796]
[1773330605040,8.62761423,2073.8,2072.8,2.5882913]
[1773330605329,8.62761423,2073.8,2072.9,0.56841796]
[1773330605330,1.20557457,2073.7,2072.9,0.56841796]
[1773330605500,4.8222983,2073.8,2073.0,1.20598166]
[1773330606409,4.8222983,2073.8,2072.3,6.78796287]
[1773330606410,0.52558186,2073.4,2072.3,6.78796287]
[1773330606728,0.39570488,2073.7,2072.7,0.56841796]
[1773330606729,1.81658186,2073.7,2072.7,0.56841796]